fUSD/lending_fUSD_20260219
["ID","MTS","AMOUNT","RATE_DAILY","PERIOD"]
[406001998,1771519851644,-300.0,0.00040123,2]
[406001999,1771519851655,-300.0,0.00040123,2]
[406002000,1771519851667,-300.0,0.00040123,2]
[406002001,1771519851683,-300.0,0.00040123,2]
[406002002,1771519851694,-518.20923752,0.00040123,2]
[406002003,1771519851704,-306.01661575,0.00040123,2]
[406002004,1771519851714,-300.0,0.00040123,2]
[406002005,1771519851726,-300.0,0.00040123,2]
[406002006,1771519851739,-300.0,0.00040123,2]
[406002007,1771519851751,-300.0,0.00040123,2]
[406002008,1771519851761,-300.0,0.00040123,2]
[406002009,1771519851773,-300.0,0.00040123,2]
[406002010,1771519851786,-300.0,0.00040123,2]
[406002011,1771519851798,-300.0,0.00040123,2]
[406002012,1771519851810,-300.0,0.00040123,2]
[406002013,1771519851821,-1081.30003242,0.00040123,2]
[406002014,1771519851832,-300.0,0.00040123,2]
[406002015,1771519851843,-300.0,0.00040123,2]
[406002016,1771519851856,-300.0,0.00040123,2]
[406002017,1771519851868,-300.0,0.00040123,2]
[406002018,1771519851880,-300.0,0.00040123,2]
[406002019,1771519851892,-855.07863865,0.00040123,2]
[406002020,1771519851905,-883.85715657,0.00040123,2]
[406002021,1771519851917,-300.0,0.00040123,2]
[406002022,1771519851931,-1561.59524453,0.00040123,2]
[406002023,1771519851944,-300.0,0.00040123,2]
[406002024,1771519851956,-300.0,0.00040123,2]
[406002025,1771519851968,-300.0,0.00040123,2]
[406002026,1771519851979,-307.0602376,0.00040123,2]
[406002027,1771519851991,-300.0,0.00040123,2]
[406002028,1771519852004,-300.0,0.00040123,2]
[406002029,1771519852016,-458.46094533,0.00040123,2]
[406002030,1771519852028,-300.0,0.00040123,2]
[406002031,1771519852043,-300.0,0.00040123,2]
[406002032,1771519852055,-300.0,0.00040123,2]
[406002033,1771519852067,-300.0,0.00040123,2]
[406002034,1771519852079,-371.13983204,0.00040123,2]
[406002035,1771519852092,-300.0,0.00040123,2]
[406002036,1771519852104,-300.0,0.00040123,2]
[406002037,1771519852116,-300.0,0.00040123,2]
[406002038,1771519852128,-300.0,0.00040123,2]
[406002039,1771519852140,-300.0,0.00040123,2]
[406002040,1771519852153,-300.0,0.00040123,2]
[406002041,1771519852165,-518.20923752,0.00040123,2]
[406002042,1771519852176,-306.01661577,0.00040123,2]
[406002043,1771519852190,-300.0,0.00040123,2]
[406002044,1771519852203,-300.0,0.00040123,2]
[406002045,1771519852216,-300.0,0.00040123,2]
[406002046,1771519852227,-300.0,0.00040123,2]
[406002047,1771519852239,-300.0,0.00040123,2]
[406002048,1771519852252,-300.0,0.00040123,2]
[406002049,1771519852263,-300.0,0.00040123,2]
[406002050,1771519852276,-300.0,0.00040123,2]
[406002051,1771519852289,-300.0,0.00040123,2]
[406002052,1771519852301,-1081.30003242,0.00040123,2]
[406002053,1771519852313,-300.0,0.00040123,2]
[406002054,1771519852326,-300.0,0.00040123,2]
[406002055,1771519852338,-300.0,0.00040123,2]
[406002056,1771519852350,-300.0,0.00040123,2]
[406002057,1771519852361,-300.0,0.00040123,2]
[406002058,1771519852376,-855.07863865,0.00040123,2]
[406002059,1771519852388,-883.85715657,0.00040123,2]
[406002060,1771519852399,-300.0,0.00040123,2]
[406002061,1771519852411,-1561.59524453,0.00040123,2]
[406002062,1771519852422,-300.0,0.00040123,2]
[406002063,1771519852433,-300.0,0.00040123,2]
[406002064,1771519852445,-300.0,0.00040123,2]
[406002065,1771519852456,-307.0602376,0.00040123,2]
[406002066,1771519852468,-300.0,0.00040123,2]
[406002067,1771519852480,-300.0,0.00040123,2]
[406002068,1771519852491,-458.46094533,0.00040123,2]
[406002069,1771519852502,-300.0,0.00040123,2]
[406002070,1771519852514,-300.0,0.00040123,2]
[406002071,1771519852527,-300.0,0.00040123,2]
[406002072,1771519852540,-371.13983204,0.00040123,2]
[406002073,1771519852551,-300.0,0.00040123,2]
[406002074,1771519852566,-300.0,0.00040123,2]
[406002075,1771519852590,-300.0,0.00040123,2]
[406002076,1771519852602,-300.0,0.00040123,2]
[406002077,1771519852614,-300.0,0.00040123,2]
[406002078,1771519852627,-300.0,0.00040123,2]
[406002079,1771519852639,-518.20923752,0.00040123,2]
[406002080,1771519852657,-306.01661575,0.00040123,2]
[406002081,1771519852678,-300.0,0.00040123,2]
[406002082,1771519852691,-300.0,0.00040123,2]
[406002083,1771519852704,-300.0,0.00040123,2]
[406002084,1771519852717,-300.0,0.00040123,2]
[406002085,1771519852730,-300.0,0.00040123,2]
[406002086,1771519852741,-300.0,0.00040123,2]
[406002087,1771519852752,-300.0,0.00040123,2]
[406002088,1771519852764,-300.0,0.00040123,2]
[406002089,1771519852777,-300.0,0.00040123,2]
[406002090,1771519852790,-1081.30003242,0.00040123,2]
[406002091,1771519852804,-300.0,0.00040123,2]
[406002092,1771519852819,-300.0,0.00040123,2]
[406002093,1771519852832,-300.0,0.00040123,2]
[406002094,1771519852846,-300.0,0.00040123,2]
[406002095,1771519853071,-300.0,0.00040123,2]
[406002096,1771519853091,-855.07863865,0.00040123,2]
[406002097,1771519853101,-883.85715657,0.00040123,2]
[406002098,1771519853111,-300.0,0.00040123,2]
[406002099,1771519853120,-1561.59524453,0.00040123,2]
[406002100,1771519853135,-300.0,0.00040123,2]
[406002101,1771519853142,-300.0,0.00040123,2]
[406002102,1771519853151,-300.0,0.00040123,2]
[406002103,1771519853159,-307.0602376,0.00040123,2]
[406002104,1771519853169,-300.0,0.00040123,2]
[406002105,1771519853179,-300.0,0.00040123,2]
[406002106,1771519853188,-458.46094533,0.00040123,2]
[406002107,1771519853197,-300.0,0.00040123,2]
[406002108,1771519853206,-300.0,0.00040123,2]
[406002109,1771519853214,-300.0,0.00040123,2]
[406002110,1771519853225,-371.13983204,0.00040123,2]
[406002111,1771519853236,-300.0,0.00040123,2]
[406002112,1771519853246,-300.0,0.00040123,2]
[406002113,1771519853256,-300.0,0.00040123,2]
[406002114,1771519853265,-300.0,0.00040123,2]
[406002115,1771519853274,-300.0,0.00040123,2]
[406002116,1771519853283,-300.0,0.00040123,2]
[406002117,1771519853293,-518.20923752,0.00040123,2]
[406002118,1771519853302,-306.01661577,0.00040123,2]
[406002119,1771519853311,-300.0,0.00040123,2]
[406002120,1771519853321,-300.0,0.00040123,2]
[406002121,1771519853330,-300.0,0.00040123,2]
[406002122,1771519853340,-300.0,0.00040123,2]
[406002123,1771519853350,-300.0,0.00040123,2]
[406002124,1771519853360,-300.0,0.00040123,2]
[406002125,1771519853370,-300.0,0.00040123,2]
[406002126,1771519853381,-300.0,0.00040123,2]
[406002127,1771519853392,-300.0,0.00040123,2]
[406002128,1771519853401,-1081.30003242,0.00040123,2]
[406002129,1771519853412,-300.0,0.00040123,2]
[406002130,1771519853423,-300.0,0.00040123,2]
[406002131,1771519853433,-300.0,0.00040123,2]
[406002132,1771519853442,-300.0,0.00040123,2]
[406002133,1771519853452,-300.0,0.00040123,2]
[406002134,1771519853462,-855.07863865,0.00040123,2]
[406002135,1771519853473,-883.85715657,0.00040123,2]
[406002136,1771519853482,-300.0,0.00040123,2]
[406002137,1771519853492,-1561.59524453,0.00040123,2]
[406002138,1771519853501,-300.0,0.00040123,2]
[406002139,1771519853510,-300.0,0.00040123,2]
[406002140,1771519853520,-300.0,0.00040123,2]
[406002141,1771519853529,-307.0602376,0.00040123,2]
[406002142,1771519853538,-300.0,0.00040123,2]
[406002143,1771519853547,-300.0,0.00040123,2]
[406002144,1771519853556,-458.46094533,0.00040123,2]
[406002145,1771519853565,-300.0,0.00040123,2]
[406002146,1771519853575,-300.0,0.00040123,2]
[406002147,1771519853584,-300.0,0.00040123,2]
[406002148,1771519853593,-371.13983204,0.00040123,2]
[406002149,1771519853603,-300.0,0.00040123,2]
[406002150,1771519853613,-300.0,0.00040123,2]
[406002151,1771519853624,-300.0,0.00040123,2]
[406002152,1771519853633,-300.0,0.00040123,2]
[406002153,1771519853643,-300.0,0.00040123,2]
[406002154,1771519853652,-300.0,0.00040123,2]
[406002155,1771519853661,-518.20923752,0.00040123,2]
[406002156,1771519853671,-306.01661575,0.00040123,2]
[406002157,1771519853680,-300.0,0.00040123,2]
[406002158,1771519853690,-300.0,0.00040123,2]
[406002159,1771519853700,-300.0,0.00040123,2]
[406002160,1771519853710,-300.0,0.00040123,2]
[406002161,1771519853719,-397.08744977,0.00040123,2]
[406002162,1771519853729,-524.14572695,0.00040123,2]
[406002163,1771519853738,-315.56841782,0.00040123,2]
[406002164,1771519853749,-336.39316801,0.00040123,2]
[406002165,1771519853759,-300.0,0.00040123,2]
[406002166,1771519853770,-1081.30003242,0.00040123,2]
[406002167,1771519853781,-311.49166371,0.00040123,2]
[406002168,1771519853791,-454.0861059,0.00040123,2]
[406002169,1771519853800,-300.0,0.00040123,2]
[406002170,1771519853809,-444.34010245,0.00040123,2]
[406002171,1771519853818,-1501.76613067,0.00040123,2]
[406002172,1771519853827,-333.09789086,0.00040123,2]
[406002173,1771519853837,-855.07863865,0.00040123,2]
[406002174,1771519853847,-883.85715657,0.00040123,2]
[406002175,1771519853856,-300.0,0.00040123,2]
[406002176,1771519853866,-449.6697428,0.00040123,2]
[406002177,1771519853877,-300.0,0.00040123,2]
[406002178,1771519853887,-432.82318045,0.00040123,2]
[406002179,1771519853898,-500.12274138,0.00040123,2]
[406002180,1771519853908,-307.0602376,0.00040123,2]
[406002181,1771519853919,-321.00771954,0.00040123,2]
[406002182,1771519853930,-544.57927802,0.00040123,2]
[406002183,1771519853940,-458.46094533,0.00040123,2]
[406002184,1771519853952,-300.0,0.00040123,2]
[406002185,1771519853963,-300.0,0.00040123,2]
[406002186,1771519853973,-575.77393686,0.00040123,2]
[406002187,1771519853984,-371.13983204,0.00040123,2]
[406002188,1771519853995,-300.0,0.00040123,2]
[406002189,1771519854006,-300.0,0.00040123,2]
[406002190,1771519854016,-300.0,0.00040123,2]
[406002191,1771519854029,-387.87436183,0.00040123,2]
[406002192,1771519854040,-300.0,0.00040123,2]
[406002193,1771519854051,-300.0,0.00040123,2]
[406002194,1771519854061,-518.20923752,0.00040123,2]
[406002195,1771519854074,-306.01661577,0.00040123,2]
[406002196,1771519854084,-534.43835335,0.00040123,2]
[406002197,1771519854097,-300.0,0.00040123,2]
[406002198,1771519854109,-300.0,0.00040123,2]
[406002199,1771519854119,-506.87974303,0.00040123,2]
[406002200,1771519854134,-300.0,0.00040123,2]
[406002201,1771519854145,-1081.30003242,0.00040123,2]
[406002202,1771519854155,-300.0,0.00040123,2]
[406002203,1771519854166,-855.07863865,0.00040123,2]
[406002204,1771519854176,-883.85715657,0.00040123,2]
[406002205,1771519854187,-387.81995128,0.00040123,2]
[406002206,1771519854197,-583.56322529,0.00040123,2]
[406002207,1771519854206,-307.0602376,0.00040123,2]
[406002208,1771519854216,-458.46094533,0.00040123,2]
[406002209,1771519854225,-300.0,0.00040123,2]
[406002210,1771519854235,-300.0,0.00040123,2]
[406002211,1771519854244,-371.13983204,0.00040123,2]
[406002212,1771519854254,-300.0,0.00040123,2]
[406002213,1771519854263,-338.39310006,0.00040123,2]
[406002214,1771519854272,-300.0,0.00040123,2]
[406002215,1771519854281,-415.16127525,0.00040123,2]
[406002216,1771519854291,-300.0,0.00040123,2]
[406002217,1771519854300,-518.20923752,0.00040123,2]
[406002218,1771519854309,-306.01661575,0.00040123,2]
[406002219,1771519854319,-300.0,0.00040123,2]
[406002220,1771519854328,-300.0,0.00040123,2]
[406002221,1771519854337,-300.0,0.00040123,2]
[406002222,1771519854347,-1081.30003242,0.00040123,2]
[406002223,1771519854356,-300.0,0.00040123,2]
[406002224,1771519854366,-855.07863865,0.00040123,2]
[406002225,1771519854379,-883.85715657,0.00040123,2]
[406002226,1771519854388,-307.0602376,0.00040123,2]
[406002227,1771519854398,-458.46094533,0.00040123,2]
[406002228,1771519854408,-300.0,0.00040123,2]
[406002229,1771519854418,-300.0,0.00040123,2]
[406002230,1771519854427,-371.13983204,0.00040123,2]
[406002231,1771519854436,-300.0,0.00040123,2]
[406002232,1771519854446,-300.0,0.00040123,2]
[406002233,1771519854455,-300.0,0.00040123,2]
[406002234,1771519854464,-518.20923752,0.00040123,2]
[406002235,1771519854473,-306.01661577,0.00040123,2]
[406002236,1771519854482,-300.0,0.00040123,2]
[406002237,1771519854491,-300.0,0.00040123,2]
[406002238,1771519854501,-300.0,0.00040123,2]
[406002239,1771519854510,-1081.30003242,0.00040123,2]
[406002240,1771519854519,-300.0,0.00040123,2]
[406002241,1771519854529,-855.07863865,0.00040123,2]
[406002242,1771519854540,-883.85715657,0.00040123,2]
[406002243,1771519854550,-307.0602376,0.00040123,2]
[406002244,1771519854559,-458.46094533,0.00040123,2]
[406002245,1771519854569,-300.0,0.00040123,2]
[406002246,1771519854578,-361.42598038,0.00040123,2]
[406002247,1771519854588,-371.13983204,0.00040123,2]
[406002248,1771519854597,-300.0,0.00040123,2]
[406002249,1771519854606,-300.0,0.00040123,2]
[406002250,1771519854615,-300.0,0.00040123,2]
[406002251,1771519854625,-518.20923752,0.00040123,2]
[406002253,1771519854635,-306.01661575,0.00040123,2]
[406002254,1771519854645,-520.29953035,0.00040123,2]
[406002255,1771519854655,-300.0,0.00040123,2]
[406002257,1771519854666,-300.0,0.00040123,2]
[406002258,1771519854677,-1081.30003242,0.00040123,2]
[406002260,1771519854687,-300.0,0.00040123,2]
[406002261,1771519854697,-855.07863865,0.00040123,2]
[406002262,1771519854708,-883.85715657,0.00040123,2]
[406002264,1771519854718,-307.0602376,0.00040123,2]
[406002265,1771519854728,-458.46094533,0.00040123,2]
[406002267,1771519854738,-300.0,0.00040123,2]
[406002268,1771519854748,-371.13983204,0.00040123,2]
[406002269,1771519854759,-300.0,0.00040123,2]
[406002271,1771519854769,-300.0,0.00040123,2]
[406002272,1771519854779,-300.0,0.00040123,2]
[406002274,1771519854789,-518.20923752,0.00040123,2]
[406002275,1771519854798,-306.01661577,0.00040123,2]
[406002276,1771519854807,-300.0,0.00040123,2]
[406002278,1771519854816,-564.06234096,0.00040123,2]
[406002279,1771519854827,-328.83,0.00040313,30]
[406002280,1771519854836,-162.0,0.000405,120]
[406002282,1771519854846,-2506.44936381,0.000406,28]
[406002283,1771519854855,-1444.0,0.00040658,120]
[406002285,1771519854862,-153.0,0.000407,120]
[406002286,1771519854869,-1000.0,0.00040733,2]
[406002287,1771519854882,-1037.6,0.00040758,30]
[406002289,1771519854890,-221.52,0.00040806,60]
[406002290,1771519854899,-500.0,0.00040822,2]
[406002291,1771519854910,-500.0,0.00040822,2]
[406002293,1771519854920,-500.0,0.00040822,2]
[406002294,1771519854930,-500.0,0.00040822,2]
[406002296,1771519854940,-500.0,0.00040822,2]
[406002297,1771519854950,-500.0,0.00040822,2]
[406002298,1771519854959,-500.0,0.00040822,2]
[406002300,1771519854969,-500.0,0.00040822,2]
[406002301,1771519854978,-500.0,0.00040822,2]
[406002302,1771519854988,-500.0,0.00040822,2]
[406002304,1771519854997,-500.0,0.00040822,2]
[406002305,1771519855007,-500.0,0.00040822,2]
[406002307,1771519855016,-500.0,0.00040822,2]
[406002308,1771519855026,-500.0,0.00040822,2]
[406002309,1771519855037,-500.0,0.00040822,2]
[406002311,1771519855048,-500.0,0.00040822,2]
[406002312,1771519855058,-500.0,0.00040822,2]
[406002314,1771519855068,-500.0,0.00040822,2]
[406002315,1771519855077,-500.0,0.00040822,2]
[406002316,1771519855087,-500.0,0.00040822,2]
[406002318,1771519855096,-151.0,0.00040822,30]
[406002319,1771519855105,-214.246313,0.00040822,30]
[406002320,1771519855117,-151.0,0.00040822,2]
[406002322,1771519855127,-151.0,0.00040822,2]
[406002323,1771519855137,-151.0,0.00040822,2]
[406002324,1771519855147,-151.0,0.00040822,2]
[406002326,1771519855156,-151.0,0.00040822,2]
[406002327,1771519855166,-151.0,0.00040822,2]
[406002329,1771519855175,-151.0,0.00040822,2]
[406002330,1771519855185,-151.0,0.00040822,2]
[406002331,1771519855194,-151.0,0.00040822,2]
[406002333,1771519855204,-151.0,0.00040822,2]
[406002334,1771519855213,-195.476445,0.00040822,2]
[406002336,1771519855223,-169.144506,0.00040822,120]
[406002337,1771519855232,-208.731197,0.00040822,120]
[406002338,1771519855241,-208.731197,0.00040822,120]
[406002340,1771519855251,-208.731197,0.00040822,120]
[406002341,1771519855260,-208.731197,0.00040822,120]
[406002342,1771519855270,-208.731197,0.00040822,120]
[406002344,1771519855280,-208.731197,0.00040822,120]
[406002345,1771519855289,-208.731197,0.00040822,120]
[406002347,1771519855299,-208.731197,0.00040822,120]
[406002348,1771519855308,-208.731197,0.00040822,120]
[406002349,1771519855317,-208.731197,0.00040822,120]
[406002351,1771519855326,-208.731197,0.00040822,120]
[406002352,1771519855336,-208.731197,0.00040822,120]
[406002354,1771519855345,-208.731197,0.00040822,120]
[406002355,1771519855354,-208.731197,0.00040822,120]
[406002356,1771519855364,-208.731197,0.00040822,120]
[406002358,1771519855373,-208.731197,0.00040822,120]
[406002359,1771519855384,-208.731197,0.00040822,120]
[406002361,1771519855393,-208.731197,0.00040822,120]
[406002362,1771519855402,-208.731197,0.00040822,120]
[406002363,1771519855411,-208.731201,0.00040822,120]
[406002365,1771519855422,-1422.501923,0.00040822,14]
[406002366,1771519855431,-1422.501923,0.00040822,14]
[406002368,1771519855441,-1422.501923,0.00040822,14]
[406002369,1771519855450,-1422.501923,0.00040822,14]
[406002370,1771519855460,-1422.501923,0.00040822,14]
[406002372,1771519855469,-1422.501923,0.00040822,14]
[406002373,1771519855479,-1422.501923,0.00040822,14]
[406002375,1771519855488,-1422.501923,0.00040822,14]
[406002376,1771519855497,-1422.501923,0.00040822,14]
[406002377,1771519855507,-1422.501923,0.00040822,14]
[406002379,1771519855516,-1422.501923,0.00040822,14]
[406002380,1771519855526,-1422.501923,0.00040822,14]
[406002382,1771519855535,-8617.696041,0.00040822,120]
[406002383,1771519855545,-1422.501923,0.00040822,14]
[406002384,1771519855556,-8617.696041,0.00040822,120]
[406002386,1771519855566,-1422.501923,0.00040822,14]
[406002387,1771519855576,-8617.696041,0.00040822,120]
[406002388,1771519855585,-1422.501923,0.00040822,14]
[406002390,1771519855594,-8617.696041,0.00040822,120]
[406002391,1771519855604,-1422.501923,0.00040822,14]
[406002393,1771519855614,-8617.696041,0.00040822,120]
[406002394,1771519855623,-1422.501923,0.00040822,14]
[406002396,1771519855633,-8617.696041,0.00040822,120]
[406002397,1771519855642,-1422.501923,0.00040822,14]
[406002398,1771519855652,-8617.696041,0.00040822,120]
[406002400,1771519855662,-8617.696041,0.00040822,120]
[406002401,1771519855671,-1422.501923,0.00040822,14]
[406002402,1771519855681,-8617.696041,0.00040822,120]
[406002404,1771519855690,-1422.501918,0.00040822,14]
[406002405,1771519855700,-8617.696041,0.00040822,120]
[406002407,1771519855709,-8617.696041,0.00040822,120]
[406002408,1771519855718,-8617.696041,0.00040822,120]
[406002409,1771519855727,-8617.696041,0.00040822,120]
[406002411,1771519855736,-8617.696041,0.00040822,120]
[406002412,1771519855745,-8617.696041,0.00040822,120]
[406002414,1771519855755,-8617.696041,0.00040822,120]
[406002415,1771519855763,-8617.696041,0.00040822,120]
[406002416,1771519855773,-8617.696041,0.00040822,120]
[406002418,1771519855783,-8617.696041,0.00040822,120]
[406002419,1771519855792,-8617.696034,0.00040822,120]
[406002421,1771519855802,-151.0,0.00040822,120]
[406002422,1771519855811,-151.0,0.00040822,120]
[406002423,1771519855820,-151.0,0.00040822,120]
[406002425,1771519855830,-151.0,0.00040822,120]
[406002426,1771519855839,-151.0,0.00040822,120]
[406002427,1771519855848,-151.0,0.00040822,120]
[406002429,1771519855857,-151.0,0.00040822,120]
[406002430,1771519855867,-151.0,0.00040822,120]
[406002432,1771519855877,-151.0,0.00040822,120]
[406002433,1771519855887,-151.0,0.00040822,120]
[406002434,1771519855896,-151.0,0.00040822,120]
[406002436,1771519855905,-151.0,0.00040822,120]
[406002437,1771519855915,-151.0,0.00040822,120]
[406002438,1771519855924,-151.0,0.00040822,120]
[406002439,1771519855934,-151.0,0.00040822,120]
[406002440,1771519855943,-190.984138,0.00040822,120]
[406002441,1771519855952,-183.366338,0.00040822,120]
[406002442,1771519855961,-1303.344,0.00040896,59]
[406002443,1771519855970,-211.0,0.0004093,30]
[406002444,1771519855979,-160.0,0.00041,120]
[406002445,1771519855987,-987.4739995,0.00041,2]
[406002446,1771519855996,-1047.60760928,0.00041,30]
[406002447,1771519856006,-300.0,0.00041068,22]
[406002448,1771519856014,-841.0,0.00041096,120]
[406002449,1771519856024,-248.1,0.00041096,120]
[406002450,1771519856036,-5207.87,0.00041096,120]
[406002452,1771519856048,-151.0,0.00041096,120]
[406002453,1771519856058,-151.0,0.00041096,120]
[406002454,1771519856068,-151.0,0.00041096,120]
[406002456,1771519856078,-163.568516,0.00041096,120]
[406002457,1771519856088,-162.0,0.000411,120]
[406002459,1771519856098,-4235.48975412,0.00041182,14]
[406002460,1771519856111,-516.0,0.00041231,24]
[406002461,1771519856120,-153.0,0.000413,120]
[406002463,1771519856132,-841.0,0.0004137,120]
[406002464,1771519856143,-702.71526187,0.000415,120]
[406002465,1771519856153,-152.0,0.00041525,5]
[406002467,1771519856163,-1037.6,0.00041549,30]
[406002468,1771519856173,-162.0,0.000416,120]
[406002470,1771519856183,-841.0,0.00041644,120]
[406002471,1771519856192,-210.34728364,0.00041653,120]
[406002472,1771519856202,-634.88,0.000417,30]
[406002480,1771519856356,-1000.0,0.00041733,2]
[406002482,1771519856369,-150.67,0.00041805,120]
[406002483,1771519856381,-150.6,0.00041819,120]
[406002484,1771519856391,-564.51,0.000419,14]
[406002486,1771519856401,-841.0,0.00041918,120]
[406002487,1771519856411,-179.4,0.00041949,30]
[406002489,1771519856421,-500.0,0.00042,2]
[406002490,1771519856430,-8599.31501874,0.00042,5]
[406002491,1771519856440,-526.39678491,0.00042,120]
[406002493,1771519856450,-3000.0,0.00042,30]
[406002494,1771519856460,-100943.32809756,0.00042,120]
[406002496,1771519856469,-907.15181573,0.00042,4]
[406002497,1771519856478,-153.0,0.00042,120]
[406002498,1771519856488,-300.0,0.00042,120]
[406002500,1771519856497,-743.0,0.00042,2]
[406002501,1771519856507,-500.0,0.00042,120]
[406002503,1771519856516,-150.67,0.00042005,120]
[406002504,1771519856526,-1367.17192499,0.0004201,2]
[406002505,1771519856535,-582.0,0.000421,3]
[406002507,1771519856545,-150.67,0.00042105,120]
[406002508,1771519856554,-150.66,0.00042105,120]
[406002510,1771519856564,-841.0,0.00042192,120]
[406002511,1771519856574,-5646.21076102,0.000422,2]
[406002512,1771519856584,-4065.82424809,0.000422,120]
[406002514,1771519856593,-162.0,0.000422,120]
[406002515,1771519856603,-150.67,0.00042205,120]
[406002517,1771519856612,-150.66,0.00042205,120]
[406002518,1771519856621,-150.67,0.00042305,120]
[406002520,1771519856632,-150.66,0.00042305,120]
[406002521,1771519856642,-1037.6,0.00042339,120]
[406002522,1771519856651,-204.653233,0.00042397,120]
[406002524,1771519856660,-150.67,0.00042405,120]
[406002525,1771519856670,-150.66,0.00042405,120]
[406002527,1771519856680,-4461.068943,0.00042417,14]
[406002528,1771519856689,-841.0,0.00042466,120]
[406002529,1771519856699,-150.0,0.0004247,120]
[406002531,1771519856708,-863.42766188,0.000425,120]
[406002532,1771519856718,-500.0,0.000425,120]
[406002534,1771519856727,-150.67,0.00042505,120]
[406002535,1771519856736,-150.66,0.00042505,120]
[406002536,1771519856746,-164.0,0.0004253,3]
[406002538,1771519856755,-218.021777,0.00042567,120]
[406002539,1771519856765,-150.67,0.00042605,120]
[406002541,1771519856774,-150.66,0.00042605,120]
[406002542,1771519856784,-328.83,0.00042661,120]
[406002543,1771519856793,-162.0,0.000427,120]
[406002545,1771519856802,-153.0,0.000427,120]
[406002546,1771519856811,-150.67,0.00042705,120]
[406002548,1771519856820,-150.66,0.00042705,120]
[406002549,1771519856830,-1000.0,0.00042733,2]
[406002550,1771519856839,-841.0,0.0004274,120]
[406002552,1771519856849,-4000.0,0.0004274,14]
[406002553,1771519856858,-150.0,0.00042756,120]
[406002555,1771519856867,-150.67,0.00042805,120]
[406002556,1771519856877,-150.66,0.00042805,120]
[406002557,1771519856886,-1502.50462293,0.0004282,2]
[406002559,1771519856896,-150.67,0.00042905,120]
[406002560,1771519856906,-211.0,0.0004295,30]
[406002561,1771519856915,-167.28865251,0.00042959,2]
[406002563,1771519856924,-7288.64110479,0.00043,3]
[406002564,1771519856934,-959.25410737,0.00043,2]
[406002566,1771519856943,-1317.73982219,0.00043,15]
[406002567,1771519856952,-1723.04812994,0.00043,2]
[406002568,1771519856961,-118384.06919541,0.00043,3]
[406002570,1771519856970,-919.61,0.00043,120]
[406002571,1771519856980,-100000.0,0.00043,120]
[406002573,1771519856989,-200.0,0.00043,120]
[406002574,1771519857001,-1000.0,0.00043,4]
[406002575,1771519857010,-400.24,0.00043,30]
[406002577,1771519857020,-1000.0,0.00043,120]
[406002578,1771519857032,-3392.0,0.00043,120]
[406002580,1771519857042,-3025.0,0.00043,120]
[406002581,1771519857052,-500.0,0.00043,120]
[406002582,1771519857061,-150.67,0.00043005,120]
[406002584,1771519857073,-150.66,0.00043005,120]
[406002585,1771519857083,-841.0,0.00043014,120]
[406002587,1771519857093,-200.0,0.00043068,120]
[406002588,1771519857104,-153.82618928,0.00043074,2]
[406002589,1771519857113,-150.67,0.00043105,120]
[406002591,1771519857123,-1037.6,0.0004313,120]
[406002592,1771519857136,-160.0,0.00043157,16]
[406002594,1771519857146,-150.67,0.00043205,120]
[406002595,1771519857156,-150.66,0.00043205,120]